[Event "Irish New Year-GM 2022"]
[Site "Dublin"]
[Date "2022.01.03"]
[Round "2.4"]
[White "Collins, Sam E."]
[Black "Kanyamarala, Tarun"]
[Result "1-0"]
[ECO "B22"]
[WhiteElo "2456"]
[BlackElo "2377"]
[Annotator "ChessBase"]
[PlyCount "97"]
[EventDate "2022.01.02"]
[EventType "tourn"]
[EventCountry "IRL"]
[SourceTitle "playchess.com"]
[Source "ChessBase"]
[SourceQuality "1"]
[TimeControl "5400+30"]

1. e4 {[%emt 0:00:07]} c5 {[%emt 0:00:06]} 2. Nf3 {[%emt 0:00:23]} Nc6 {[%emt 0:00:08]} 3. c3 {[%emt 0:00:22]} Nf6 {[%emt 0:02:19]} 4. e5 {[%emt 0:00:26]} Nd5 {[%emt 0:00:16]} 5. Bc4 {[%emt 0:00:28]} Nb6 {[%emt 0:00:48]} 6. Bb3 {[%emt 0:00:37]} c4 {[%emt 0:01:31]} 7. Bc2 {[%emt 0:00:20]} d6 {[%emt 0:00:10]} 8. exd6 {[%emt 0:01:09]} Qxd6 {[%emt 0:00:07]} 9. O-O {[%emt 0:01:43]} Bg4 {[%emt 0:02:13]} 10. h3 {[%emt 0:00:52]} Bh5 {[%emt 0:01:53]} 11. Re1 {[%emt 0:00:39]} e6 {[%emt 0:03:50]} 12. b3 {[%emt 0:06:55]} Be7 {[%emt 0:04:58]} 13. Na3 {[%emt 0:01:36]} cxb3 {[%emt 0:01:27]} 14. axb3 {[%emt 0:00:18]} O-O {[%emt 0:02:23]} 15. d4 {[%emt 0:00:35]} Nd5 {[%emt 0:18:43]} 16. Bd2 {[%emt 0:13:40]} a6 {[%emt 0:13:47]} 17. Nc4 {[%emt 0:02:10]} Qc7 {[%emt 0:00:50]} 18. Ne3 {[%emt 0:04:32]} Nf4 {[%emt 0:11:05]} 19. Ng4 {[%emt 0:05:07]} Bg6 {[%emt 0:09:27]} 20. Bxg6 {[%emt 0:07:00]} Nxg6 {[%emt 0:00:57]} 21. Qe2 {[%emt 0:02:15]} Rfd8 {[%emt 0:00:53]} 22. Rad1 {[%emt 0:06:49]} b5 {[%emt 0:04:07]} 23. Bc1 {[%emt 0:03:43]} Na5 {[%emt 0:02:06]} 24. Qa2 {[%emt 0:04:45]} Nc6 {[%emt 0:01:54]} 25. Qe2 {[%emt 0:00:43]} Na5 {[%emt 0:00:02]} 26. Qa2 {[%emt 0:00:14]} Nc6 {[%emt 0:00:05]} 27. Ne3 {[%emt 0:04:16]} Nf4 {[%emt 0:02:53]} 28. Nf1 {[%emt 0:09:38]} Nd5 {[%emt 0:00:41]} 29. Bd2 {[%emt 0:01:19]} a5 {[%emt 0:02:27]} 30. Ne3 {[%emt 0:02:34]} Nb6 {[%emt 0:00:51]} 31. Qc2 {[%emt 0:02:40]} a4 {[%emt 0:05:57]} 32. Rb1 {[%emt 0:00:11]} Rac8 {[%emt 0:02:28]} 33. Qe4 {[%emt 0:04:13]} Na5 {[%emt 0:01:05]} 34. bxa4 {[%emt 0:05:09]} Nxa4 {[%emt 0:01:00]} 35. Rxb5 {[%emt 0:01:13]} Nxc3 {[%emt 0:00:05]} 36. Bxc3 {[%emt 0:00:28]} Qxc3 {[%emt 0:00:05]} 37. d5 {[%emt 0:00:45]} e5 {[%emt 0:01:56]} 38. Qxe5 {[%emt 0:02:13]} Bf6 {[%emt 0:02:56]} 39. Qxc3 {[%emt 0:00:13]} Bxc3 {[%emt 0:00:04]} 40. Rc1 {[%emt 0:00:45]} g6 {[%emt 0:01:07]} 41. Rxc3 {[%emt 0:01:42]} Rxc3 {[%emt 0:00:06]} 42. Rxa5 {[%emt 0:00:05]} f5 {[%emt 0:00:06]} 43. g3 {[%emt 0:00:21]} Rb8 {[%emt 0:00:34]} 44. Ra2 {[%emt 0:00:54]} f4 {[%emt 0:00:24]} 45. gxf4 {[%emt 0:00:13]} Rb4 {[%emt 0:00:06]} 46. Ng5 {[%emt 0:01:07]} Rxf4 {[%emt 0:00:43]} 47. Ra8+ {[%emt 0:00:25]} Rf8 {[%emt 0:00:05]} 48. Rc8 {[%emt 0:06:38]} Rd8 49. Rxd8+ {[%emt 0:00:00]} 1-0

[Event "Irish New Year-GM 2022"]
[Site "Dublin"]
[Date "2022.01.03"]
[Round "3.1"]
[White "Stefansson, Vignir Vatnar"]
[Black "Arkell, Keith C"]
[Result "1-0"]
[ECO "A35"]
[WhiteElo "2457"]
[BlackElo "2370"]
[Annotator "ChessBase"]
[PlyCount "83"]
[EventDate "2022.01.02"]
[EventType "tourn"]
[EventCountry "IRL"]
[SourceTitle "playchess.com"]
[Source "ChessBase"]
[SourceQuality "1"]
[TimeControl "5400+30"]

1. c4 {[%emt 0:01:07]} c5 {[%emt 0:02:09]} 2. Nc3 {[%emt 0:01:19]} Nc6 {[%emt 0:00:28]} 3. Nf3 {[%emt 0:00:53]} g6 {[%emt 0:00:23]} 4. e3 {[%emt 0:01:04]} Nf6 {[%emt 0:00:07]} 5. d4 {[%emt 0:00:08]} cxd4 {[%emt 0:00:05]} 6. exd4 {[%emt 1:28:59]} d5 {[%emt 0:00:12]} 7. cxd5 {[%emt 0:00:00]} Nxd5 {[%emt 0:00:05]} 8. Qb3 {[%emt 0:00:00]} Nxc3 {[%emt 0:00:47]} 9. Bc4 {[%emt 0:00:00]} Nd5 {[%emt 0:00:09]} 10. Bxd5 {[%emt 0:00:00]} e6 {[%emt 0:00:05]} 11. Bxc6+ {[%emt 0:00:00]} bxc6 {[%emt 0:00:05]} 12. O-O {[%emt 0:00:00]} Qb6 {[%emt 0:02:23]} 13. Qc3 {[%emt 0:00:00]} Bg7 {[%emt 0:00:54]} 14. Bf4 {[%emt 0:00:00]} O-O {[%emt 0:00:59]} 15. Be5 {[%emt 0:00:00]} f6 {[%emt 0:00:16]} 16. Bd6 {[%emt 0:00:00]} Rd8 {[%emt 0:00:41]} 17. Bc5 {[%emt 0:00:00]} Qc7 {[%emt 0:00:23]} 18. Rfe1 {[%emt 0:00:00]} Rd5 {[%emt 0:00:53]} 19. Rac1 {[%emt 0:00:00]} Bd7 {[%emt 0:00:10]} 20. Nd2 {[%emt 0:00:00]} Rd8 {[%emt 0:12:16]} 21. Ne4 {[%emt 0:00:00]} Bc8 {[%emt 0:03:25]} 22. Qa3 {[%emt 0:00:00]} R5d7 {[%emt 0:05:19]} 23. Bb4 {[%emt 0:00:00]} Qf4 {[%emt 0:22:58]} 24. g3 {[%emt 0:00:00]} Qf5 {[%emt 0:02:17]} 25. Be7 {[%emt 0:00:00]} Bf8 {[%emt 0:07:25]} 26. Bxf8 {[%emt 0:00:00]} Rxf8 {[%emt 0:00:10]} 27. Rc5 {[%emt 0:00:00]} Qh3 {[%emt 0:02:55]} 28. Qe3 {[%emt 0:00:00]} Kg7 {[%emt 0:05:22]} 29. f3 {[%emt 0:00:00]} Rff7 {[%emt 0:13:57]} 30. Nf2 {[%emt 0:00:00]} Qh6 {[%emt 0:00:06]} 31. Qc3 {[%emt 0:00:00]} Rd5 {[%emt 0:01:57]} 32. Rxc6 {[%emt 0:00:00]} Bd7 {[%emt 0:06:00]} 33. Rc7 {[%emt 0:00:00]} a5 {[%emt 0:00:23]} 34. Re4 {[%emt 0:00:00]} Kg8 {[%emt 0:03:41]} 35. Ra7 {[%emt 0:00:00]} a4 {[%emt 0:02:27]} 36. Nd3 {[%emt 0:00:00]} e5 {[%emt 0:03:30]} 37. dxe5 {[%emt 0:00:00]} Bb5 {[%emt 0:02:40]} 38. Ra8+ {[%emt 0:00:00]} Rf8 {[%emt 0:00:11]} 39. Rxf8+ {[%emt 0:00:00]} Qxf8 {[%emt 0:00:10]} 40. Nf2 {[%emt 0:00:00]} fxe5 {[%emt 0:00:23]} 41. Rxe5 {[%emt 0:00:00]} Qd6 {[%emt 0:00:35]} 42. Qc8+ {[%emt 0:00:00]} 1-0

[Event "Irish New Year-GM 2022"]
[Site "Dublin"]
[Date "2022.01.03"]
[Round "3.2"]
[White "Kanyamarala, Tarun"]
[Black "O`Gorman, Tom"]
[Result "1/2-1/2"]
[ECO "D85"]
[WhiteElo "2377"]
[BlackElo "2350"]
[Annotator "ChessBase"]
[PlyCount "51"]
[EventDate "2022.01.02"]
[EventType "tourn"]
[EventCountry "IRL"]
[SourceTitle "playchess.com"]
[Source "ChessBase"]
[SourceQuality "1"]
[TimeControl "5400+30"]

1. d4 {[%emt 0:00:03]} Nf6 {[%emt 0:00:06]} 2. c4 {[%emt 0:00:05]} g6 {[%emt 0:00:04]} 3. Nc3 {[%emt 0:00:06]} d5 {[%emt 0:00:17]} 4. cxd5 {[%emt 0:01:23]} Nxd5 {[%emt 0:00:06]} 5. e4 {[%emt 0:00:06]} Nxc3 {[%emt 0:00:05]} 6. bxc3 {[%emt 0:00:05]} Bg7 {[%emt 0:00:08]} 7. Nf3 {[%emt 0:00:19]} c5 {[%emt 0:00:05]} 8. h3 {[%emt 0:00:25]} O-O {[%emt 0:01:00]} 9. Be2 {[%emt 0:01:57]} cxd4 {[%emt 0:02:19]} 10. cxd4 {[%emt 0:00:07]} Nc6 {[%emt 0:00:30]} 11. Be3 {[%emt 0:00:11]} f5 {[%emt 0:00:52]} 12. Bc4+ {[%emt 0:03:57]} Kh8 {[%emt 0:00:45]} 13. O-O {[%emt 0:00:08]} f4 {[%emt 0:05:06]} 14. Bc1 {[%emt 0:02:48]} Nxd4 {[%emt 0:01:54]} 15. Ba3 {[%emt 0:00:42]} b5 {[%emt 0:20:45]} 16. Bd5 {[%emt 0:12:33]} Nxf3+ {[%emt 0:00:13]} 17. Qxf3 {[%emt 0:00:08]} Rb8 {[%emt 0:00:08]} 18. Rab1 {[%emt 0:03:26]} a5 {[%emt 0:06:50]} 19. Bc5 {[%emt 0:03:42]} b4 {[%emt 0:04:45]} 20. a3 {[%emt 0:20:48]} Bb7 {[%emt 0:14:03]} 21. axb4 {[%emt 0:07:07]} Bxd5 {[%emt 0:11:18]} 22. exd5 {[%emt 0:00:10]} axb4 {[%emt 0:02:01]} 23. Rfe1 {[%emt 0:03:35]} Rf5 {[%emt 0:02:56]} 24. Bxe7 {[%emt 0:06:14]} Qxd5 {[%emt 0:00:10]} 25. Qxd5 {[%emt 0:00:47]} Rxd5 {[%emt 0:00:07]} 26. Rxb4 {[%emt 0:00:13]} 1/2-1/2

[Event "Irish New Year-GM 2022"]
[Site "Dublin"]
[Date "2022.01.03"]
[Round "3.3"]
[White "Motwani, Paul"]
[Black "Collins, Sam E."]
[Result "0-1"]
[ECO "E92"]
[WhiteElo "2432"]
[BlackElo "2456"]
[Annotator "ChessBase"]
[PlyCount "134"]
[EventDate "2022.01.02"]
[EventType "tourn"]
[EventCountry "IRL"]
[SourceTitle "playchess.com"]
[Source "ChessBase"]
[SourceQuality "1"]
[TimeControl "5400+30"]

1. d4 {[%emt 0:00:26]} Nf6 {[%emt 0:00:29]} 2. c4 {[%emt 0:01:39]} g6 {[%emt 0:00:35]} 3. Nc3 {[%emt 0:00:20]} Bg7 {[%emt 0:00:30]} 4. e4 {[%emt 0:00:16]} d6 {[%emt 0:00:19]} 5. Nf3 {[%emt 0:03:50]} O-O {[%emt 0:00:21]} 6. Be2 {[%emt 0:01:24]} e5 {[%emt 0:00:42]} 7. d5 {[%emt 0:02:21]} a5 {[%emt 0:02:52]} 8. Bg5 {[%emt 0:15:07]} h6 {[%emt 0:00:36]} 9. Be3 {[%emt 0:01:07]} Ng4 {[%emt 0:00:45]} 10. Bd2 {[%emt 0:00:27]} f5 {[%emt 0:00:42]} 11. exf5 {[%emt 0:05:00]} Bxf5 {[%emt 0:01:57]} 12. Be3 {[%emt 0:23:46]} Na6 {[%emt 0:06:50]} 13. Qd2 {[%emt 0:02:31]} Nxe3 {[%emt 0:02:29]} 14. fxe3 {[%emt 0:01:58]} Nc5 {[%emt 0:01:39]} 15. O-O {[%emt 0:03:33]} h5 {[%emt 0:02:07]} 16. Rae1 {[%emt 0:08:07]} Bh6 {[%emt 0:04:17]} 17. Rf2 {[%emt 0:06:39]} Qe7 {[%emt 0:06:57]} 18. g3 {[%emt 0:03:18]} Rf7 {[%emt 0:15:50]} 19. Nh4 {[%emt 0:01:45]} Qg5 {[%emt 0:05:24]} 20. Nxf5 {[%emt 0:01:25]} Rxf5 {[%emt 0:04:52]} 21. Rxf5 {[%emt 0:02:31]} gxf5 {[%emt 0:01:19]} 22. Bf1 {[%emt 0:00:59]} h4 {[%emt 0:01:32]} 23. Qg2 {[%emt 0:02:52]} Kh8 {[%emt 0:00:49]} 24. Qh3 {[%emt 0:05:42]} Rg8 {[%emt 0:01:02]} 25. Kf2 {[%emt 0:01:03]} f4 {[%emt 0:05:02]} 26. exf4 {[%emt 0:01:16]} hxg3+ {[%emt 0:05:41]} 27. hxg3 {[%emt 0:00:10]} exf4 {[%emt 0:00:19]} 28. g4 {[%emt 0:02:20]} Rg6 {[%emt 0:03:50]} 29. Kf3 {[%emt 0:00:51]} Kg7 {[%emt 0:03:16]} 30. Ne4 {[%emt 0:02:03]} Qe7 {[%emt 0:02:58]} 31. g5 {[%emt 0:00:24]} Bxg5 {[%emt 0:02:28]} 32. Re2 {[%emt 0:00:20]} Qf7 {[%emt 0:07:59]} 33. Nxc5 {[%emt 0:00:27]} dxc5 {[%emt 0:00:05]} 34. Re6 {[%emt 0:00:22]} Bf6 {[%emt 0:00:42]} 35. Ke4 {[%emt 0:01:41]} Rg3 {[%emt 0:00:41]} 36. Qf5 {[%emt 0:00:00]} Re3+ {[%emt 0:01:40]} 37. Kxf4 {[%emt 0:00:09]} Bg5+ {[%emt 0:00:53]} 38. Kxg5 {[%emt 0:00:24]} Rg3+ {[%emt 0:00:19]} 39. Kf4 {[%emt 0:00:08]} Rf3+ {[%emt 0:00:11]} 40. Kxf3 {[%emt 0:00:05]} Qxf5+ {[%emt 0:00:06]} 41. Kg2 {[%emt 0:00:10]} Qg5+ {[%emt 0:01:13]} 42. Kf2 {[%emt 0:00:19]} Qf4+ {[%emt 0:00:27]} 43. Kg2 {[%emt 0:00:32]} Qg4+ {[%emt 0:00:32]} 44. Kh2 {[%emt 0:00:50]} c6 {[%emt 0:03:28]} 45. Re7+ {[%emt 0:00:42]} Kf6 {[%emt 0:00:57]} 46. Rxb7 {[%emt 0:00:33]} cxd5 {[%emt 0:01:08]} 47. cxd5 {[%emt 0:00:29]} Qf4+ {[%emt 0:00:40]} 48. Kg1 {[%emt 0:00:38]} Qd4+ {[%emt 0:00:24]} 49. Kh2 {[%emt 0:00:57]} Qxd5 {[%emt 0:00:28]} 50. Rb6+ {[%emt 0:00:22]} Kg5 {[%emt 0:00:21]} 51. a3 {[%emt 0:01:05]} Qe5+ {[%emt 0:00:24]} 52. Kg2 {[%emt 0:00:32]} c4 {[%emt 0:00:58]} 53. a4 {[%emt 0:00:28]} Qe4+ {[%emt 0:01:07]} 54. Kh2 {[%emt 0:00:11]} Qc2+ {[%emt 0:01:40]} 55. Kg3 {[%emt 0:00:24]} Qxa4 {[%emt 0:00:21]} 56. Rb8 {[%emt 0:00:54]} Qc6 {[%emt 0:01:58]} 57. Rg8+ {[%emt 0:00:17]} Kf5 {[%emt 0:00:54]} 58. Rc8 {[%emt 0:00:37]} Qd6+ {[%emt 0:00:36]} 59. Kh3 {[%emt 0:00:28]} Qh6+ {[%emt 0:00:15]} 60. Kg2 {[%emt 0:00:19]} Qd2+ {[%emt 0:00:03]} 61. Kf3 {[%emt 0:00:15]} Qd5+ {[%emt 0:00:45]} 62. Kg3 {[%emt 0:00:24]} Qe5+ {[%emt 0:00:10]} 63. Kf3 {[%emt 0:00:35]} Qxb2 {[%emt 0:00:32]} 64. Rc5+ {[%emt 0:01:01]} Kf6 {[%emt 0:00:19]} 65. Rxc4 {[%emt 0:00:18]} a4 {[%emt 0:00:59]} 66. Ke4 {[%emt 0:00:40]} a3 {[%emt 0:00:19]} 67. Rc6+ {[%emt 0:00:13]} Ke7 {[%emt 0:00:07]} 0-1

[Event "Irish New Year-GM 2022"]
[Site "Dublin"]
[Date "2022.01.04"]
[Round "4.1"]
[White "Arkell, Keith C"]
[Black "Cafolla, Peter"]
[Result "1-0"]
[ECO "A13"]
[WhiteElo "2370"]
[BlackElo "1976"]
[Annotator "ChessBase"]
[PlyCount "87"]
[EventDate "2022.01.02"]
[EventType "tourn"]
[EventCountry "IRL"]
[SourceTitle "playchess.com"]
[Source "ChessBase"]
[SourceQuality "1"]
[TimeControl "5400+30"]

1. c4 {[%emt 0:10:51]} e6 {[%emt 0:00:00]} 2. Nf3 {[%emt 0:00:10]} d5 {[%emt 0:00:00]} 3. b3 {[%emt 0:00:09]} c5 {[%emt 0:00:11]} 4. e3 {[%emt 0:00:19]} Nf6 {[%emt 0:00:27]} 5. Bb2 {[%emt 0:00:21]} Nc6 {[%emt 0:00:26]} 6. cxd5 {[%emt 0:00:20]} exd5 {[%emt 0:00:24]} 7. Bb5 {[%emt 0:00:08]} Bg4 {[%emt 0:06:04]} 8. h3 {[%emt 0:00:08]} Bh5 {[%emt 0:00:54]} 9. g4 {[%emt 0:00:09]} Bg6 {[%emt 0:00:05]} 10. Ne5 {[%emt 0:01:42]} Qb6 {[%emt 0:02:32]} 11. Bxc6+ {[%emt 0:04:03]} bxc6 {[%emt 0:00:10]} 12. Nxg6 {[%emt 0:00:17]} hxg6 {[%emt 0:00:19]} 13. Bxf6 {[%emt 0:02:39]} gxf6 {[%emt 0:00:17]} 14. Qf3 {[%emt 0:00:06]} Qd8 {[%emt 0:05:38]} 15. Nc3 {[%emt 0:00:22]} Qd6 {[%emt 0:00:40]} 16. Rc1 {[%emt 0:00:23]} Rb8 {[%emt 0:05:12]} 17. h4 {[%emt 0:00:19]} f5 {[%emt 0:03:02]} 18. gxf5 {[%emt 0:01:20]} Rh5 {[%emt 0:07:00]} 19. fxg6 {[%emt 0:00:45]} fxg6 {[%emt 0:05:25]} 20. Qg3 {[%emt 0:02:12]} Rb4 {[%emt 0:02:00]} 21. Ne2 {[%emt 0:08:28]} g5 {[%emt 0:00:27]} 22. Qxd6 {[%emt 0:01:38]} Bxd6 {[%emt 0:00:09]} 23. Ng3 {[%emt 0:01:41]} Rbxh4 {[%emt 0:08:06]} 24. Rxh4 {[%emt 0:00:44]} Rxh4 {[%emt 0:00:11]} 25. Ke2 {[%emt 0:01:18]} Rb4 {[%emt 0:10:20]} 26. Nf5 {[%emt 0:00:16]} Kd7 {[%emt 0:01:28]} 27. Rh1 {[%emt 0:07:39]} Bb8 {[%emt 0:03:41]} 28. Rh6 {[%emt 0:17:24]} a5 {[%emt 0:09:26]} 29. Kd1 {[%emt 0:01:08]} c4 {[%emt 0:02:09]} 30. Rh7+ {[%emt 0:00:41]} Ke8 {[%emt 0:05:34]} 31. bxc4 {[%emt 0:00:27]} a4 {[%emt 0:04:13]} 32. Nd4 {[%emt 0:04:02]} Bd6 {[%emt 0:07:06]} 33. cxd5 {[%emt 0:00:26]} cxd5 {[%emt 0:00:47]} 34. Kc2 {[%emt 0:10:36]} a3 {[%emt 0:02:05]} 35. Nb3 {[%emt 0:04:12]} Rh4 {[%emt 0:01:17]} 36. Rb7 {[%emt 0:03:54]} Rh2 {[%emt 0:05:06]} 37. f3 {[%emt 0:00:33]} Be5 {[%emt 0:00:36]} 38. Rb5 {[%emt 0:00:18]} Ke7 {[%emt 0:00:25]} 39. Rxd5 {[%emt 0:00:17]} Ke6 {[%emt 0:01:28]} 40. Ra5 {[%emt 0:00:08]} Bf6 {[%emt 0:01:50]} 41. Nc5+ {[%emt 0:00:07]} Kf7 {[%emt 0:00:43]} 42. Ne4 {[%emt 0:00:07]} Be7 {[%emt 0:00:41]} 43. Nxg5+ {[%emt 0:00:10]} Kg6 {[%emt 0:00:19]} 44. Ne4 {[%emt 0:00:45]} 1-0

[Event "Irish New Year-GM 2022"]
[Site "Dublin"]
[Date "2022.01.04"]
[Round "4.3"]
[White "Collins, Sam E."]
[Black "Murphy, Conor E"]
[Result "1/2-1/2"]
[ECO "C65"]
[WhiteElo "2456"]
[BlackElo "2431"]
[Annotator "ChessBase"]
[PlyCount "82"]
[EventDate "2022.01.02"]
[EventType "tourn"]
[EventCountry "IRL"]
[SourceTitle "playchess.com"]
[Source "ChessBase"]
[SourceQuality "1"]
[TimeControl "5400+30"]

1. e4 {[%emt 0:00:03]} e5 {[%emt 0:01:49]} 2. Nf3 {[%emt 0:00:35]} Nc6 {[%emt 0:00:09]} 3. Bb5 {[%emt 0:00:16]} Nf6 {[%emt 0:00:28]} 4. d3 {[%emt 0:00:43]} Bc5 {[%emt 0:00:42]} 5. Bxc6 {[%emt 0:00:20]} dxc6 {[%emt 0:00:08]} 6. O-O {[%emt 0:00:26]} Qe7 {[%emt 0:02:02]} 7. Nbd2 {[%emt 0:01:04]} Bg4 {[%emt 0:01:39]} 8. h3 {[%emt 0:00:49]} Bh5 {[%emt 0:00:08]} 9. a3 {[%emt 0:00:49]} Nd7 {[%emt 0:02:34]} 10. b4 {[%emt 0:03:11]} Bd4 {[%emt 0:04:58]} 11. Rb1 {[%emt 0:00:42]} f6 {[%emt 0:00:31]} 12. Qe1 {[%emt 0:12:30]} Bb6 {[%emt 0:10:33]} 13. Qe2 {[%emt 0:26:19]} Nf8 {[%emt 0:08:10]} 14. Nc4 {[%emt 0:04:28]} Ne6 {[%emt 0:00:54]} 15. Be3 {[%emt 0:00:27]} O-O {[%emt 0:13:30]} 16. a4 {[%emt 0:03:56]} Kh8 {[%emt 0:04:59]} 17. a5 {[%emt 0:02:22]} Nd4 {[%emt 0:05:41]} 18. Bxd4 {[%emt 0:01:44]} Bxd4 {[%emt 0:00:06]} 19. Ne3 {[%emt 0:02:44]} Bxe3 {[%emt 0:04:39]} 20. Qxe3 {[%emt 0:05:31]} b6 {[%emt 0:00:23]} 21. Nh4 {[%emt 0:01:59]} Qe6 {[%emt 0:02:29]} 22. Nf5 {[%emt 0:03:37]} Bg6 {[%emt 0:01:16]} 23. Ng3 {[%emt 0:00:32]} Qa2 {[%emt 0:03:46]} 24. Qd2 {[%emt 0:00:45]} Rfd8 {[%emt 0:02:12]} 25. Qc3 {[%emt 0:03:40]} Qe6 {[%emt 0:00:47]} 26. f4 {[%emt 0:02:18]} exf4 {[%emt 0:01:37]} 27. Ne2 {[%emt 0:00:56]} Qd6 {[%emt 0:05:29]} 28. Nxf4 {[%emt 0:00:14]} Bf7 {[%emt 0:00:16]} 29. Kh1 {[%emt 0:00:23]} Re8 {[%emt 0:00:40]} 30. Ne2 {[%emt 0:01:06]} Rad8 {[%emt 0:02:24]} 31. Rf3 {[%emt 0:00:23]} Re5 {[%emt 0:01:33]} 32. Ng3 {[%emt 0:01:06]} Bg6 {[%emt 0:02:08]} 33. axb6 {[%emt 0:21:02]} axb6 {[%emt 0:01:23]} 34. Nf5 {[%emt 0:00:00]} Bxf5 {[%emt 0:02:32]} 35. Rxf5 {[%emt 0:00:00]} Rxf5 {[%emt 0:04:04]} 36. exf5 {[%emt 0:00:00]} Qd5 {[%emt 0:00:44]} 37. Re1 {[%emt 0:00:00]} h6 {[%emt 0:00:24]} 38. Re7 {[%emt 0:00:00]} Qxf5 {[%emt 0:01:04]} 39. Qxc6 {[%emt 0:00:00]} Qf1+ {[%emt 0:01:52]} 40. Kh2 {[%emt 0:00:00]} Qf4+ {[%emt 0:00:06]} 41. Kh1 {[%emt 0:00:00]} Qf1+ {[%emt 0:01:54]} 1/2-1/2

[Event "Irish New Year-GM 2022"]
[Site "Dublin"]
[Date "2022.01.04"]
[Round "4.4"]
[White "O`Gorman, Tom"]
[Black "Motwani, Paul"]
[Result "1/2-1/2"]
[ECO "C60"]
[WhiteElo "2350"]
[BlackElo "2432"]
[Annotator "ChessBase"]
[PlyCount "56"]
[EventDate "2022.01.02"]
[EventType "tourn"]
[EventCountry "IRL"]
[SourceTitle "playchess.com"]
[Source "ChessBase"]
[SourceQuality "1"]
[TimeControl "5400+30"]

1. e4 {[%emt 0:00:07]} e5 {[%emt 0:00:09]} 2. Nf3 {[%emt 0:00:07]} Nc6 {[%emt 0:00:13]} 3. Bb5 {[%emt 0:00:08]} a6 {[%emt 0:00:50]} 4. Ba4 {[%emt 0:00:07]} g6 {[%emt 0:02:28]} 5. O-O {[%emt 0:01:18]} Bg7 {[%emt 0:00:45]} 6. c3 {[%emt 0:00:15]} Nge7 {[%emt 0:01:45]} 7. d4 {[%emt 0:02:12]} b5 {[%emt 0:02:06]} 8. Bb3 {[%emt 0:00:59]} exd4 {[%emt 0:02:02]} 9. cxd4 {[%emt 0:00:10]} Na5 {[%emt 0:02:52]} 10. Bc2 {[%emt 0:02:24]} d6 {[%emt 0:02:38]} 11. d5 {[%emt 0:19:28]} O-O {[%emt 0:05:56]} 12. Bd2 {[%emt 0:02:45]} Nc4 {[%emt 0:19:15]} 13. Bc3 {[%emt 0:01:50]} Nxb2 {[%emt 0:00:53]} 14. Qc1 {[%emt 0:06:16]} Nc4 {[%emt 0:00:47]} 15. Bxg7 {[%emt 0:02:34]} Kxg7 {[%emt 0:00:06]} 16. a4 {[%emt 0:01:48]} Bg4 {[%emt 0:04:56]} 17. Nfd2 {[%emt 0:13:15]} Nxd2 {[%emt 0:07:54]} 18. Nxd2 {[%emt 0:00:35]} c6 {[%emt 0:03:53]} 19. Bd3 {[%emt 0:06:16]} cxd5 {[%emt 0:03:01]} 20. axb5 {[%emt 0:01:27]} axb5 {[%emt 0:00:49]} 21. Bxb5 {[%emt 0:01:56]} Qb6 {[%emt 0:01:13]} 22. Qc3+ {[%emt 0:07:52]} d4 {[%emt 0:05:10]} 23. Qd3 {[%emt 0:00:24]} Rxa1 {[%emt 0:03:55]} 24. Rxa1 {[%emt 0:00:09]} Rc8 {[%emt 0:01:10]} 25. Nb3 {[%emt 0:03:01]} d5 {[%emt 0:02:13]} 26. Nxd4 {[%emt 0:01:52]} Qf6 {[%emt 0:05:47]} 27. Re1 {[%emt 0:02:56]} dxe4 {[%emt 0:00:45]} 28. Qxe4 {[%emt 0:00:21]} Bf5 {[%emt 0:01:16]} 1/2-1/2

[Event "Irish New Year-GM 2022"]
[Site "Dublin"]
[Date "2022.01.04"]
[Round "4.5"]
[White "Stefansson, Vignir Vatnar"]
[Black "Kanyamarala, Tarun"]
[Result "1-0"]
[ECO "E04"]
[WhiteElo "2457"]
[BlackElo "2377"]
[Annotator "ChessBase"]
[PlyCount "107"]
[EventDate "2022.01.02"]
[EventType "tourn"]
[EventCountry "IRL"]
[SourceTitle "playchess.com"]
[Source "ChessBase"]
[SourceQuality "1"]
[TimeControl "5400+30"]

1. d4 {[%emt 0:00:33]} Nf6 {[%emt 0:00:10]} 2. c4 {[%emt 0:00:27]} e6 {[%emt 0:00:08]} 3. g3 {[%emt 0:00:51]} d5 {[%emt 0:00:12]} 4. Bg2 {[%emt 0:00:08]} dxc4 {[%emt 0:00:09]} 5. Nf3 {[%emt 0:00:08]} Nc6 {[%emt 0:00:10]} 6. Qa4 {[%emt 0:00:17]} Bb4+ {[%emt 0:00:12]} 7. Bd2 {[%emt 0:00:29]} Nd5 {[%emt 0:00:10]} 8. Qb5 {[%emt 0:00:07]} Bxd2+ {[%emt 0:00:15]} 9. Nbxd2 {[%emt 0:00:05]} c3 {[%emt 0:00:07]} 10. bxc3 {[%emt 0:00:03]} Nxc3 {[%emt 0:00:06]} 11. Qd3 {[%emt 0:00:05]} Nd5 {[%emt 0:00:05]} 12. O-O {[%emt 0:01:18]} O-O {[%emt 0:00:19]} 13. Rfc1 {[%emt 0:01:13]} h6 {[%emt 0:00:27]} 14. Rab1 {[%emt 0:01:30]} Qe7 {[%emt 0:01:07]} 15. a3 {[%emt 0:01:37]} Rd8 {[%emt 0:00:11]} 16. Nc4 {[%emt 0:08:23]} b6 {[%emt 0:16:59]} 17. Nce5 {[%emt 0:20:04]} Na5 {[%emt 0:08:11]} 18. Qc2 {[%emt 0:05:38]} Bb7 {[%emt 0:25:31]} 19. Qa4 {[%emt 0:00:26]} Rac8 {[%emt 0:03:53]} 20. Nd3 {[%emt 0:00:06]} Qe8 {[%emt 0:09:41]} 21. Qxe8+ {[%emt 0:04:39]} Rxe8 {[%emt 0:32:57]} 22. Nfe5 {[%emt 0:01:14]} f6 {[%emt 0:00:00]} 23. Nf3 {[%emt 0:00:57]} Ba6 {[%emt 0:00:00]} 24. Nfe1 {[%emt 0:00:09]} Ne7 {[%emt 0:00:00]} 25. e3 {[%emt 0:01:57]} Bb7 {[%emt 0:00:00]} 26. Rb2 {[%emt 0:05:52]} Bxg2 {[%emt 0:00:00]} 27. Kxg2 {[%emt 0:00:01]} Red8 {[%emt 0:00:00]} 28. h4 {[%emt 0:00:24]} g5 {[%emt 0:00:00]} 29. h5 {[%emt 0:02:03]} Kf7 {[%emt 0:00:00]} 30. g4 {[%emt 0:00:15]} Nb7 {[%emt 0:00:00]} 31. Rbc2 {[%emt 0:00:18]} c6 {[%emt 0:00:00]} 32. Kf1 {[%emt 0:00:28]} Rd7 {[%emt 0:00:00]} 33. Ke2 {[%emt 0:01:24]} Rdc7 {[%emt 0:00:00]} 34. Nf3 {[%emt 0:00:02]} c5 {[%emt 0:00:00]} 35. dxc5 {[%emt 0:02:02]} bxc5 {[%emt 0:00:00]} 36. Nd2 {[%emt 0:00:33]} Nd5 {[%emt 0:01:21]} 37. Nc4 {[%emt 0:07:57]} Ke7 {[%emt 0:00:13]} 38. e4 {[%emt 0:00:51]} Nb6 {[%emt 0:00:35]} 39. e5 {[%emt 0:00:04]} fxe5 {[%emt 0:01:09]} 40. Ndxe5 {[%emt 0:01:19]} Nxc4 {[%emt 0:00:16]} 41. Rxc4 {[%emt 0:00:18]} Nd6 {[%emt 0:00:15]} 42. Ra4 {[%emt 0:02:49]} Nb5 {[%emt 0:00:53]} 43. Ke3 {[%emt 0:00:54]} Kf6 {[%emt 0:02:36]} 44. Nc4 {[%emt 0:00:40]} Rd7 {[%emt 0:00:37]} 45. Ra5 {[%emt 0:00:46]} Nc7 {[%emt 0:00:08]} 46. Nd2 {[%emt 0:00:52]} Nd5+ {[%emt 0:00:48]} 47. Kf3 {[%emt 0:00:06]} Rf7 {[%emt 0:01:05]} 48. Rcxc5 {[%emt 0:01:38]} Rxc5 {[%emt 0:00:59]} 49. Rxc5 {[%emt 0:00:01]} Ke5+ {[%emt 0:00:21]} 50. Ke2 {[%emt 0:00:52]} Rf4 {[%emt 0:00:31]} 51. Ra5 {[%emt 0:01:51]} Rf7 {[%emt 0:01:07]} 52. Nc4+ {[%emt 0:01:14]} Kf6 {[%emt 0:01:36]} 53. Nd6 {[%emt 0:00:18]} Rc7 {[%emt 0:00:26]} 54. Ne8+ {[%emt 0:00:05]} 1-0